bitfinex-derivatives/quotes_SOLF0:USTF0_20241224
["timestamp","ask_amount","ask_price","bid_price","bid_amount"]
[1735057966308,21.77836029,196.78,196.61,21.77836029]
[1735057966609,4.7952,196.77,196.58,21.77836029]
[1735057967206,4.7952,196.77,196.56,3.1403]
[1735057967409,4.7952,196.77,196.59,21.77836029]
[1735057968007,4.7952,196.77,196.62,2.5451]
[1735057968509,2.544,196.72,196.65,2.5447]
[1735057968699,2.544,196.72,196.59,21.77836029]
[1735057969212,2.544,196.72,196.65,2.5447]
[1735057969704,4.7952,196.77,196.65,2.5447]
[1735057969906,4.7952,196.77,196.63,21.77836029]
[1735057970106,3.153,196.77,196.64,1.6202]
[1735057970612,3.153,196.77,196.63,21.77836029]
[1735057970814,3.153,196.77,196.64,1.5228]
[1735057971209,1.635,196.88,196.64,1.5228]
[1735057971414,3.171,196.87,196.72,21.77836029]
[1735057971614,3.171,196.87,196.73,1.5228]
[1735057972413,2.5429,196.81,196.75,2.5435]
[1735057972615,3.171,196.87,196.75,2.5435]
[1735057973013,2.5429,196.81,196.75,2.5435]
[1735057973713,2.5429,196.8,196.75,2.5435]
[1735057974710,2.5432,196.78,196.73,4.0666]
[1735057975112,3.171,196.87,196.73,1.5228]
[1735057975414,21.77836029,196.82,196.66,1.5149]
[1735057975606,21.77836029,196.82,196.66,3.0186]
[1735057975811,21.77836029,196.86,196.66,3.0186]
[1735057976407,21.77836029,196.86,196.7,2.5442]
[1735057976915,21.77836029,196.86,196.69,21.77836029]
[1735057977610,2.5433,196.78,196.71,2.544]
[1735057978310,21.77836029,196.86,196.71,2.544]
[1735057978514,21.77836029,196.86,196.74,2.5435]
[1735057978714,3.171,196.87,196.69,21.77836029]
[1735057979518,2.5429,196.81,196.75,2.5435]
[1735057979910,2.5429,196.81,196.69,21.77836029]
[1735057980113,2.5429,196.81,196.73,21.77836029]
[1735057980815,3.171,196.87,196.73,21.77836029]
[1735057981014,2.5434,196.76,196.71,2.544]
[1735057981414,21.77836029,196.86,196.69,21.77836029]
[1735057981622,2.5433,196.78,196.72,2.5438]
[1735057981815,3.171,196.87,196.69,21.77836029]
[1735057982022,2.5426,196.82,196.76,2.5433]
[1735057982823,2.5429,196.8,196.74,2.5436]
[1735057983117,3.171,196.87,196.73,21.77836029]
[1735057984018,2.5434,196.76,196.7,2.5442]
[1735057984915,2.5435,196.76,196.69,24.32266029]
[1735057985515,2.5435,196.76,196.7,2.5441]
[1735057986117,21.77836029,196.84,196.67,21.77836029]
[1735057986419,21.77836029,196.8,196.66,1.5037]
[1735057986621,1.5972,196.79,196.66,1.5037]
[1735057986822,21.77836029,196.84,196.67,21.77836029]
[1735057987423,21.77836029,196.84,196.66,1.5037]
[1735057987625,21.77836029,196.84,196.67,21.77836029]
[1735057987826,21.77836029,196.84,196.69,2.5443]
[1735057988426,2.543,196.8,196.69,2.5443]
[1735057988726,21.77836029,196.84,196.67,21.77836029]
[1735057988926,2.5438,196.74,196.67,24.32286029]
[1735057989127,21.77836029,196.84,196.67,21.77836029]
[1735057989427,21.77836029,196.84,196.66,4.0484]
[1735057989624,21.77836029,196.84,196.66,1.5037]
[1735057990318,2.5441,196.71,196.66,1.5037]
[1735057990523,21.77836029,196.84,196.66,1.5037]
[1735057991127,2.5436,196.75,196.68,2.5444]
[1735057991525,2.543,196.79,196.66,4.0482]
[1735057991728,21.77836029,196.84,196.66,4.0482]
[1735057992126,2.544,196.72,196.66,4.0482]
[1735057992329,21.77836029,196.84,196.66,1.5037]
[1735057992730,49.44104807,196.84,196.66,1.5037]
[1735057993225,2.5441,196.71,196.66,1.5037]
[1735057993431,49.44104807,196.84,196.66,1.5037]
[1735057993933,2.5438,196.73,196.67,2.5444]
[1735057994526,2.5436,196.75,196.69,2.5443]
[1735057994827,1.5972,196.85,196.69,21.77836029]
[1735057995131,1.5972,196.85,196.7,1.5733]
[1735057995431,2.5427,196.82,196.75,2.5435]
[1735057995634,10.06545665,196.87,196.73,21.77836029]
[1735057995826,3.171,196.87,196.73,21.77836029]
[1735057996324,3.171,196.87,196.7,1.5733]
[1735057997030,3.171,196.87,196.73,21.77836029]
[1735057997439,2.5428,196.81,196.75,2.5435]
[1735057997628,2.5428,196.81,196.73,21.77836029]
[1735057998422,2.5431,196.79,196.7,1.5733]
[1735057998633,2.5431,196.79,196.71,21.77836029]
[1735057998930,3.171,196.87,196.72,2.5438]
[1735057999134,3.171,196.87,196.7,1.5733]
[1735057999734,3.171,196.87,196.71,2.544]
[1735058001530,2.5432,196.78,196.71,2.544]
[1735058003331,2.5438,196.73,196.67,2.5445]
[1735058004738,2.5439,196.72,196.67,2.5445]
[1735058006134,1.5315,196.8,196.54,159.17809724]
[1735058006135,1.5527,196.71,196.57,43.7711861]
[1735058006344,21.77836029,196.7,196.57,43.7711861]
[1735058006726,2.545,196.64,196.57,84.01992915]
[1735058007038,21.77836029,196.7,196.57,84.01992915]
[1735058007338,21.77836029,196.66,196.57,84.01992915]
[1735058007538,21.77836029,196.7,196.57,84.01992915]
[1735058008236,21.77836029,196.7,196.56,135.73046214]
[1735058008433,21.77836029,196.7,196.54,2.5462]
[1735058009141,2.5452,196.62,196.54,2.5462]
[1735058009534,21.77836029,196.7,196.58,2.5456]
[1735058009735,1.5527,196.71,196.56,21.77836029]
[1735058009736,2.5449,196.64,196.56,21.77836029]
[1735058010138,1.5527,196.71,196.56,21.77836029]
[1735058010338,2.545,196.63,196.56,21.77836029]
[1735058010538,21.77836029,196.7,196.53,3.1508]
[1735058011539,2.5453,196.61,196.53,5.6971]
[1735058011839,21.77836029,196.7,196.53,3.1508]
[1735058012636,21.77836029,196.7,196.53,24.92916029]
[1735058013042,2.5454,196.61,196.54,2.5462]
[1735058013243,21.77836029,196.7,196.53,24.92916029]
[1735058013643,2.5455,196.6,196.53,27.47546029]
[1735058014044,21.77836029,196.7,196.53,24.92916029]
[1735058014244,2.5459,196.57,196.53,3.1508]
[1735058014435,13.67113464,196.63,196.5,13.67113464]
[1735058014638,13.67113464,196.63,196.39,3.1592]
[1735058014840,1.5735,196.62,196.47,13.67113464]
[1735058015041,2.5463,196.54,196.46,2.5471]
[1735058015337,2.5463,196.54,196.39,3.1592]
[1735058015338,1.5735,196.62,196.48,13.67113464]
[1735058015537,2.5457,196.58,196.48,13.67113464]
[1735058015737,1.5735,196.62,196.48,13.67113464]
[1735058015950,1.661,196.65,196.51,13.67113464]
[1735058016135,1.5735,196.69,196.54,21.87322456]
[1735058016535,2.5452,196.62,196.54,24.41932456]
[1735058016738,23.53422456,196.71,196.54,24.41932456]
[1735058016935,1.5596,196.7,196.54,24.41932456]
[1735058017538,1.5596,196.7,196.55,2.546]
[1735058017942,2.5449,196.65,196.57,2.5457]
[1735058018152,2.5449,196.65,196.58,25.19672456]
[1735058018547,2.5446,196.67,196.6,2.5454]
[1735058018835,1.661,196.71,196.6,2.5454]
[1735058019038,21.87322456,196.75,196.61,2.5452]
[1735058019039,2.5445,196.68,196.61,2.5452]
[1735058019247,21.87322456,196.75,196.58,25.19672456]
[1735058019843,2.5445,196.68,196.61,2.5453]
[1735058020044,21.87322456,196.75,196.58,25.19672456]
[1735058020451,3.1604,196.78,196.62,21.87322456]
[1735058020751,21.87322456,196.82,196.63,1.5867]
[1735058021044,2.5433,196.77,196.67,2.5444]
[1735058021243,21.87322456,196.82,196.67,2.5444]
[1735058021438,21.87322456,196.82,196.63,1.5867]
[1735058022348,21.87322456,196.82,196.67,2.5444]
[1735058022644,21.87322456,196.82,196.66,21.87322456]
[1735058022853,3.1254,196.83,196.67,3.0286]
[1735058023250,2.5433,196.76,196.69,2.5442]
[1735058023850,3.1254,196.83,196.69,2.5442]
[1735058024554,2.5433,196.76,196.7,2.5441]
[1735058024754,3.1254,196.83,196.68,21.87322456]
[1735058025055,2.5435,196.76,196.69,2.5442]
[1735058025250,3.1254,196.83,196.69,2.5442]
[1735058025454,3.1254,196.83,196.68,21.87322456]
[1735058025755,2.5437,196.74,196.68,21.87322456]
[1735058026259,3.1254,196.83,196.68,21.87322456]
[1735058027360,21.87322456,196.8,196.67,3.0286]
[1735058028056,2.5441,196.71,196.67,3.0286]
[1735058028452,21.87322456,196.8,196.67,3.0286]
[1735058028650,3.1254,196.83,196.67,3.0286]
[1735058029462,2.5435,196.75,196.67,3.0286]
[1735058030559,2.5435,196.75,196.68,2.5444]
[1735058031456,3.1254,196.83,196.68,21.87322456]
[1735058032154,3.1254,196.83,196.67,3.0286]
[1735058032758,2.5431,196.79,196.68,2.5444]
[1735058032954,3.1254,196.83,196.68,2.5444]
[1735058033655,2.5436,196.75,196.68,2.5444]
[1735058034464,3.1254,196.83,196.68,2.5444]
[1735058034854,2.5436,196.75,196.68,2.5444]
[1735058035054,3.1254,196.83,196.68,2.5444]
[1735058035654,3.1254,196.83,196.67,3.0286]
[1735058035853,3.1254,196.83,196.7,2.5441]
[1735058036066,3.1254,196.83,196.67,3.0286]
[1735058036559,2.5431,196.79,196.69,2.5442]
[1735058036763,3.1254,196.83,196.69,2.5442]
[1735058038367,2.5431,196.79,196.69,2.5442]
[1735058038567,13.65437945,196.82,196.71,2.544]
[1735058038966,13.65437945,196.82,196.68,13.65437945]
[1735058039167,2.5434,196.76,196.7,2.5441]
[1735058040167,13.65437945,196.82,196.69,2.5441]
[1735058040363,13.65437945,196.82,196.7,13.65437945]
[1735058040565,2.5433,196.77,196.7,16.19837945]
[1735058041264,2.5428,196.8,196.73,13.65437945]
[1735058041470,13.65437945,196.88,196.73,13.65437945]
[1735058042158,2.543,196.79,196.73,16.19807945]
[1735058042367,2.543,196.79,196.73,13.65437945]
[1735058043568,2.5429,196.8,196.74,2.5435]
[1735058044368,2.5423,196.85,196.79,13.65437945]
[1735058044571,32.86125405,196.92,196.82,13.65437945]
[1735058045273,2.5417,196.89,196.82,16.19687945]
[1735058045476,3.2731,196.96,196.85,13.65437945]
[1735058045772,2.5415,196.9,196.85,13.65437945]
[1735058046273,2.5414,196.92,196.85,13.65437945]
[1735058046573,27.5676701,197.0,196.91,13.65437945]
[1735058046774,137.23668066,197.04,196.91,13.65437945]
[1735058046775,41.22204955,197.04,196.91,13.65437945]
[1735058047878,13.65437945,197.04,196.91,13.65437945]
[1735058048369,3.1713,197.05,196.94,13.65437945]
[1735058048982,2.54,197.02,196.97,13.65437945]
[1735058049182,1.06591855,197.07,196.97,13.65437945]
[1735058049778,15.24067945,197.1,196.97,13.65437945]
[1735058050187,1.5863,197.1,197.0,13.65437945]
[1735058050381,1.5863,197.1,196.91,4.8134]
[1735058050575,1.5863,197.1,197.01,13.65437945]
[1735058050877,15.24067945,197.1,196.91,4.8134]
[1735058051082,15.24067945,197.1,196.95,13.65437945]
[1735058051279,13.65437945,197.07,196.91,4.8134]
[1735058051686,13.65437945,197.07,196.93,13.65437945]
[1735058051881,2.5405,196.99,196.93,13.65437945]
[1735058053688,2.5405,196.99,196.96,13.65437945]
[1735058053887,2.5401,197.02,196.96,13.65437945]
[1735058054288,2.5403,197.0,196.96,13.65437945]
[1735058054596,15.24067945,197.1,196.91,4.8134]
[1735058054597,13.65437945,197.07,196.91,4.8134]
[1735058054788,13.65437945,197.07,196.93,13.65437945]
[1735058055189,15.24067945,197.1,196.96,13.65437945]
[1735058056295,2.5403,197.0,196.96,13.65437945]
[1735058057382,2.5404,196.99,196.96,13.65437945]
[1735058058183,2.5406,196.97,196.93,13.65437945]
[1735058060294,2.5411,196.94,196.91,3.1849]
[1735058060595,2.5411,196.94,196.9,13.65437945]
[1735058061898,1.5486,197.01,196.9,13.65437945]
[1735058062396,13.65437945,197.0,196.87,13.65437945]
[1735058063599,2.5415,196.91,196.87,13.65437945]
[1735058065901,1.5486,197.01,196.9,13.65437945]
[1735058066096,1.6553,197.02,196.93,13.65437945]
[1735058066492,2.5408,196.96,196.93,13.65437945]
[1735058066998,2.5403,197.0,196.93,13.65437945]
[1735058067196,1.6553,197.02,196.93,13.65437945]
[1735058067897,1.5009,197.06,196.93,13.65437945]
[1735058068197,1.5009,197.06,196.96,13.65437945]
[1735058068393,2.54,197.02,196.96,13.65437945]
[1735058068996,2.5398,197.04,196.99,13.65437945]
[1735058069600,2.5395,197.06,196.99,13.65437945]
[1735058070002,15.26757945,197.13,196.99,13.65437945]
[1735058071395,2.5396,197.05,196.99,13.65437945]
[1735058071900,2.5395,197.06,197.02,13.65437945]
[1735058072499,1.6132,197.13,197.02,13.65437945]
[1735058072703,1.5386,197.14,197.05,13.65437945]
[1735058073106,13.65437945,197.13,196.97,3.1609]
[1735058073303,13.65437945,197.09,196.97,16.81527945]
[1735058073504,13.65437945,197.09,196.96,1.5272]
[1735058073705,2.5406,196.97,196.96,1.5272]
[1735058074302,13.65437945,197.06,196.94,13.65437945]
[1735058074607,2.5408,196.96,196.94,13.65437945]
[1735058075607,13.65437945,197.06,196.94,13.65437945]
[1735058075804,2.5409,196.95,196.94,13.65437945]
[1735058076418,1.6496,197.05,196.94,13.65437945]
[1735058076811,1.6496,197.05,196.91,18.49437945]
[1735058077810,1.6496,197.05,196.94,13.65437945]
[1735058078410,27.5676701,197.06,196.94,13.65437945]
[1735058078810,2.5401,197.01,196.94,16.19527945]
[1735058079014,2.5401,197.01,196.97,13.65437945]
[1735058079309,2.5405,196.98,196.93,13.65437945]
[1735058079716,8.53521752,197.08,196.93,13.65437945]
[1735058079907,22.18959697,197.08,196.93,13.65437945]
[1735058080312,13.65437945,197.05,196.93,13.65437945]
[1735058080509,13.65437945,197.05,196.91,4.7875]
[1735058081412,42.86534955,197.08,196.91,4.7875]
[1735058081612,42.86534955,197.08,196.94,13.65437945]
[1735058082307,15.29767945,197.08,196.94,13.65437945]
[1735058082507,2.5405,196.98,196.94,13.65437945]
[1735058084208,15.29767945,197.08,196.91,18.44187945]
[1735058084412,13.65437945,197.05,196.91,18.44187945]
[1735058086214,2.5409,196.95,196.91,18.44187945]
[1735058087815,27.5676701,197.07,196.94,13.65437945]
[1735058088013,27.5676701,197.07,196.97,13.65437945]
[1735058088718,2.5397,197.04,196.97,13.65437945]
[1735058089015,27.5676701,197.07,196.97,13.65437945]
[1735058089411,2.5404,196.99,196.97,13.65437945]
[1735058090711,2.5402,197.01,196.97,13.65437945]
[1735058091418,6.89191752,197.1,197.0,13.65437945]
[1735058091618,6.89191752,197.1,197.04,13.65437945]
[1735058092017,27.5676701,197.13,197.04,13.65437945]
[1735058092214,27.5676701,197.13,197.01,13.65437945]
[1735058092414,27.5676701,197.13,196.91,4.7875]
[1735058092608,27.5676701,197.13,196.98,13.65437945]
[1735058093013,13.65437945,197.14,196.98,13.65437945]
[1735058093215,13.65437945,197.11,196.98,13.65437945]
[1735058093410,2.54,197.02,196.98,13.65437945]
[1735058094121,2.5401,197.01,196.98,13.65437945]
[1735058098126,2.54,197.02,196.98,13.65437945]
[1735058099722,2.5393,197.07,197.01,16.19447945]
[1735058100024,2.5393,197.07,197.04,13.65437945]
[1735058100224,2.5398,197.03,196.97,2.5406]
[1735058100419,13.65437945,197.13,196.99,13.65437945]
[1735058100725,2.5398,197.03,196.99,13.65437945]
[1735058100922,13.65437945,197.13,196.99,13.65437945]
[1735058101421,2.5398,197.04,196.99,13.65437945]
[1735058101626,6.89191752,197.14,197.02,13.65437945]
[1735058102129,6.89191752,197.14,197.03,4.7981]
[1735058102322,41.22204955,197.16,197.03,4.7981]
[1735058102529,41.22204955,197.16,197.05,13.65437945]
[1735058102530,27.5676701,197.16,197.05,13.65437945]
[1735058102926,27.5676701,197.16,197.08,13.65437945]
[1735058103325,27.5676701,197.16,197.11,13.65437945]
[1735058103528,27.5676701,197.2,197.11,13.65437945]
[1735058103826,2.5383,197.15,197.11,13.65437945]
[1735058104027,27.5676701,197.2,197.11,13.65437945]
[1735058104223,27.5676701,197.2,197.14,13.65437945]
[1735058104428,27.5676701,197.2,197.03,4.7981]
[1735058104727,27.5676701,197.23,197.11,13.65437945]
[1735058104929,2.5383,197.15,197.11,13.65437945]
[1735058106528,2.5379,197.19,197.14,13.65437945]
[1735058107024,13.65437945,197.27,197.14,13.65437945]
[1735058107326,27.5676701,197.28,197.17,13.65437945]
[1735058107527,32.1231701,197.29,197.2,13.65437945]
[1735058107720,27.5676701,197.29,197.23,13.65437945]
[1735058107921,27.5676701,197.29,197.26,13.65437945]
[1735058108127,30.1042701,197.29,197.26,13.65437945]
[1735058108317,27.5676701,197.29,197.23,13.65437945]
[1735058108518,6.89191752,197.36,197.23,13.65437945]
[1735058109128,6.89191752,197.36,197.26,13.65437945]
[1735058109725,121.7944516,197.4,197.26,13.65437945]
[1735058109726,15.31147945,197.4,197.26,13.65437945]
[1735058110325,2.5362,197.32,197.26,13.65437945]
[1735058110625,13.65437945,197.37,197.25,13.65437945]
[1735058111524,2.5367,197.28,197.25,13.65437945]
[1735058113133,2.5359,197.34,197.25,13.65437945]
[1735058113427,15.31147945,197.4,197.28,13.65437945]
[1735058114532,2.536,197.33,197.28,13.65437945]
[1735058115126,13.65437945,197.37,197.21,4.6736]
[1735058115326,13.65437945,197.34,197.21,4.6736]
[1735058115627,13.65437945,197.31,197.17,13.65437945]
[1735058115835,2.5377,197.2,197.17,13.65437945]
[1735058116335,13.65437945,197.28,197.17,13.65437945]
[1735058117129,13.65437945,197.28,197.14,13.65437945]
[1735058117528,2.5383,197.15,197.14,13.65437945]
[1735058117930,13.65437945,197.25,197.14,13.65437945]
[1735058118228,13.65437945,197.28,197.14,13.65437945]
[1735058118428,13.65437945,197.25,197.14,13.65437945]
[1735058119232,13.65437945,197.28,197.14,13.65437945]
[1735058119427,1.6085,197.32,197.14,13.65437945]
[1735058119627,13.65437945,197.26,197.14,13.65437945]
[1735058119829,2.5381,197.17,197.14,13.65437945]
[1735058121337,2.5377,197.2,197.14,13.65437945]
[1735058123433,2.5374,197.22,197.17,13.65437945]
[1735058123635,2.5374,197.22,197.2,13.65437945]
[1735058123830,15.26287945,197.32,197.17,13.65437945]
[1735058124029,13.65437945,197.29,197.17,13.65437945]
[1735058125939,2.5378,197.19,197.17,13.65437945]
[1735058128340,2.5379,197.18,197.17,13.65437945]
[1735058128540,13.65437945,197.29,197.14,13.65437945]
[1735058128737,13.65437945,197.26,197.12,13.65437945]
[1735058128941,1.6085,197.32,197.0,13.65437945]
[1735058128942,13.65437945,197.23,197.09,13.65437945]
[1735058129249,4.7393,197.22,197.09,13.65437945]
[1735058129841,2.5385,197.13,197.09,13.65437945]
[1735058130647,2.5387,197.12,197.09,13.65437945]
[1735058131245,2.5391,197.09,197.01,4.8673]
[1735058131449,13.65437945,197.17,197.03,13.65437945]
[1735058131949,2.5397,197.05,197.01,4.8673]
[1735058132146,13.65437945,197.14,197.01,4.8673]
[1735058132352,3.2329,197.13,197.01,4.8673]
[1735058132752,4.8087,197.13,197.01,4.8673]
[1735058133252,2.539,197.1,197.01,4.8673]
[1735058133454,4.8087,197.13,197.01,4.8673]
[1735058133952,2.5401,197.01,197.0,13.65437945]
[1735058144156,13.65437945,197.11,196.97,13.65437945]
[1735058144353,2.5405,196.98,196.97,13.65437945]
[1735058145865,2.54,197.02,196.97,13.65437945]
[1735058146164,2.54,197.02,197.01,13.65437945]
[1735058151765,4.8087,197.13,197.01,13.65437945]
[1735058151970,6.89191752,197.2,197.07,13.65437945]
[1735058152269,6.89191752,197.2,197.1,13.65437945]
[1735058152662,2.5388,197.11,197.1,13.65437945]
[1735058153266,2.5392,197.08,197.07,16.77847945]
[1735058157368,2.5392,197.08,197.07,3.1241]
[1735058157564,2.5395,197.06,197.04,13.65437945]
[1735058161668,13.65437945,197.2,197.04,13.65437945]
[1735058161875,11.96701752,197.21,197.09,13.65437945]
[1735058162277,2.5389,197.1,197.09,13.65437945]
[1735058162571,13.65437945,197.2,197.06,13.65437945]
[1735058163677,2.5382,197.16,197.06,16.19377945]
[1735058163978,13.65437945,197.2,197.06,16.19377945]
[1735058164480,2.5388,197.11,197.06,16.19377945]
[1735058165478,13.65437945,197.2,197.06,16.19377945]
[1735058165681,2.5389,197.1,197.06,16.19377945]
[1735058166476,2.5389,197.1,197.06,13.65437945]
[1735058166675,2.5393,197.08,197.06,13.65437945]
[1735058167676,13.65437945,197.2,197.06,13.65437945]
[1735058167879,13.65437945,197.2,197.09,13.65437945]
[1735058168079,27.5676701,197.21,197.12,13.65437945]
[1735058168278,27.5676701,197.21,197.15,13.65437945]
[1735058168579,27.5676701,197.21,197.18,13.65437945]
[1735058168772,27.5676701,197.21,197.13,4.69]
[1735058168974,6.89191752,197.26,197.13,4.69]
[1735058169880,2.5382,197.16,197.13,4.69]
[1735058170282,2.5382,197.16,197.13,3.1964]
[1735058170878,2.5383,197.15,197.13,3.1964]
[1735058171483,2.5385,197.13,197.12,13.65437945]
[1735058171879,2.96,197.2,197.09,13.65437945]
[1735058172081,2.5389,197.1,197.09,13.65437945]
[1735058173279,2.5381,197.17,197.09,13.65437945]
[1735058173583,4.4813,197.2,197.09,13.65437945]
[1735058173983,2.5381,197.17,197.09,13.65437945]
[1735058174183,4.4813,197.2,197.09,13.65437945]
[1735058174384,13.65437945,197.17,197.02,3.118]
[1735058174587,3.0748,197.16,197.03,13.65437945]
[1735058175288,2.5396,197.06,197.03,13.65437945]
[1735058175492,2.5396,197.06,196.95,52.78]
[1735058175493,3.08,197.1,197.0,13.65437945]
[1735058175789,3.08,197.09,197.0,13.65437945]
[1735058176591,3.08,197.09,196.95,3.1311]
[1735058176787,3.08,197.09,196.96,13.65437945]
[1735058177688,3.08,197.09,196.99,13.65437945]
[1735058177882,2.5399,197.03,196.99,13.65437945]
[1735058179493,3.08,197.09,196.99,13.65437945]
[1735058179889,3.08,197.09,197.02,13.65437945]
[1735058180190,3.08,197.09,196.95,3.1311]
[1735058180191,2.5393,197.07,197.01,21.77265522]
[1735058180389,3.08,197.09,197.01,21.77265522]
[1735058181185,3.08,197.09,196.99,3.08]
[1735058182190,2.5398,197.04,196.99,3.08]
[1735058183494,2.5399,197.03,196.99,3.08]
[1735058183992,3.08,197.09,196.99,3.08]
[1735058184195,2.54,197.02,196.99,3.08]
[1735058184694,2.5405,196.98,196.93,2.5411]
[1735058184889,2.5405,196.98,196.95,21.77265522]
[1735058185696,2.5401,197.01,196.95,21.77265522]
[1735058185896,3.08,197.09,196.95,21.77265522]
[1735058186193,2.5403,196.99,196.95,24.31345522]
[1735058186400,3.08,197.09,196.95,24.31345522]
[1735058186791,2.5403,197.0,196.95,21.77265522]
[1735058186991,3.08,197.09,196.95,21.77265522]
[1735058187393,2.5406,196.98,196.95,21.77265522]
[1735058187989,3.08,197.02,196.91,4.6194]
[1735058189296,2.5408,196.96,196.91,4.6194]
[1735058189498,3.08,197.02,196.91,4.6194]
[1735058189898,2.5409,196.95,196.91,3.0727]
[1735058190089,3.08,197.02,196.88,3.08]
[1735058190290,3.08,197.02,196.87,21.77265522]
[1735058190897,2.5405,196.98,196.9,2.5414]
[1735058191093,3.08,197.02,196.9,2.5414]
[1735058191492,1.5719,197.04,196.87,21.77265522]
[1735058191695,3.08,197.03,196.87,21.77265522]
[1735058191891,3.08,197.03,196.85,3.08]
[1735058192098,3.08,197.03,196.93,2.5411]
[1735058192099,2.5405,196.99,196.93,2.5411]
[1735058192802,2.5405,196.99,196.94,2.541]
[1735058193005,2.5405,196.99,196.92,21.77265522]
[1735058193200,3.08,197.03,196.92,24.85265522]
[1735058193398,2.5402,197.0,196.94,2.5409]
[1735058193599,3.08,197.03,196.94,2.5409]
[1735058194102,3.08,197.03,196.93,4.7916]
[1735058194503,3.08,197.03,196.93,3.1972]
[1735058194707,2.5402,197.0,196.93,3.1972]
[1735058195003,3.08,197.03,196.93,3.1972]
[1735058196604,1.5719,197.04,196.93,3.1972]
[1735058196904,2.5403,197.0,196.94,21.77265522]
[1735058197301,1.5719,197.04,196.96,2.5406]
[1735058197508,3.2219,197.15,196.98,21.77265522]
[1735058197803,3.08,197.14,196.98,24.85265522]
[1735058197995,2.5395,197.06,197.0,2.5401]
[1735058198501,3.08,197.14,196.98,24.85265522]
[1735058198703,3.08,197.14,197.02,21.77265522]
[1735058199104,2.5389,197.11,197.02,21.77265522]
[1735058199406,3.08,197.14,197.02,21.77265522]
[1735058200000,4.879,197.15,197.02,21.77265522]
[1735058200200,3.08,197.14,197.03,13.60721839]
[1735058201295,13.60721839,197.13,196.98,2.5403]
[1735058201495,13.60721839,197.13,196.98,13.60721839]
[1735058202404,2.54,197.02,196.96,2.5406]
[1735058202606,2.54,197.02,196.99,13.60721839]
[1735058202810,2.54,197.02,196.96,2.5406]
[1735058203003,2.54,197.02,196.98,13.60721839]
[1735058204202,3.08,197.06,196.95,13.60721839]
[1735058204607,1.4939,197.05,196.95,13.60721839]
[1735058205100,1.4939,197.05,196.98,13.60721839]
[1735058205707,3.08,197.06,196.98,13.60721839]
[1735058206100,2.5398,197.03,197.01,13.60721839]
[1735058206301,2.5398,197.03,197.02,13.60721839]
[1735058206508,1.5859,197.12,197.02,13.60721839]
[1735058206704,4.7259,197.12,197.02,13.60721839]
[1735058207104,1.5859,197.12,197.05,13.60721839]
[1735058207312,27.5676701,197.15,197.08,13.60721839]
[1735058208017,3.14,197.16,197.08,13.60721839]
[1735058208313,27.5676701,197.18,197.11,13.60721839]
[1735058209009,2.5384,197.14,197.11,13.60721839]
[1735058210212,2.5384,197.14,197.07,2.5392]
[1735058210412,2.5384,197.14,197.1,13.60721839]
[1735058211410,2.5385,197.13,197.1,13.60721839]
[1735058212806,3.14,197.19,197.03,4.7074]
[1735058212807,13.60721839,197.17,197.03,4.7074]
[1735058213007,13.60721839,197.17,197.04,13.60721839]
[1735058213612,3.14,197.19,197.04,13.60721839]
[1735058213809,2.5392,197.09,197.04,13.60721839]
[1735058214805,13.60721839,197.18,197.04,15.14051839]
[1735058215010,2.5392,197.08,197.04,15.14051839]
[1735058216808,2.5393,197.07,197.04,15.14051839]
[1735058217116,3.14,197.19,197.04,15.14051839]
[1735058217310,2.5389,197.1,197.09,13.60721839]
[1735058217711,13.60721839,197.18,197.04,1.5333]
[1735058218112,2.5394,197.07,197.04,1.5333]
[1735058218319,3.14,197.13,197.04,1.5333]
[1735058218715,2.5394,197.07,197.04,1.5333]
[1735058219116,3.14,197.13,197.03,13.60721839]
[1735058219619,2.5394,197.06,197.03,13.60721839]
[1735058220320,2.5396,197.05,197.03,13.60721839]
[1735058220517,3.14,197.13,197.0,16.77831839]
[1735058220717,1.6028,197.12,197.0,16.77831839]
[1735058220921,2.5401,197.01,197.0,16.77831839]
[1735058221126,3.14,197.07,196.97,13.60721839]
[1735058222920,2.5405,196.98,196.97,13.60721839]
[1735058223124,3.14,197.07,196.92,3.1275]